fUSD/lending_fUSD_20260524
["ID","MTS","AMOUNT","RATE_DAILY","PERIOD"]
[422900488,1779593444000,-151.0,0.00027397,2]
[422900439,1779593444000,-151.0,0.00027397,2]
[422900449,1779593444000,-151.0,0.00027397,2]
[422900438,1779593444000,-151.0,0.00027397,2]
[422900443,1779593444000,-213.743711,0.00027397,2]
[422900441,1779593444000,-151.0,0.00027397,2]
[422900456,1779593444000,-190.376279,0.00027397,2]
[422900454,1779593444000,-190.376279,0.00027397,2]
[422900458,1779593444000,-151.0,0.00027397,2]
[422900472,1779593444000,-151.0,0.00027397,2]
[422900460,1779593444000,-151.0,0.00027397,2]
[422900474,1779593444000,-151.0,0.00027397,2]
[422900487,1779593444000,-151.0,0.00027397,2]
[422900476,1779593444000,-190.376279,0.00027397,2]
[422900479,1779593444000,-190.376279,0.00027397,2]
[422900482,1779593444000,-151.0,0.00027397,2]
[422900470,1779593444000,-151.0,0.00027397,2]
[422900483,1779593444000,-190.376279,0.00027397,2]
[422900481,1779593444000,-151.0,0.00027397,2]
[422900464,1779593444000,-190.376279,0.00027397,2]
[422900468,1779593444000,-190.376279,0.00027397,2]
[422900462,1779593444000,-151.0,0.00027397,2]
[422900466,1779593444000,-190.376279,0.00027397,2]
[422900484,1779593444000,-266.444111,0.00027397,2]
[422900486,1779593444000,-190.376279,0.00027397,2]
[422900516,1779593444000,-151.0,0.00027397,2]
[422900518,1779593444000,-151.0,0.00027397,2]
[422900528,1779593444000,-150.0,0.00027521,2]
[422900519,1779593444000,-151.0,0.00027397,2]
[422900555,1779593444000,-156.27,0.00028014,7]
[422900556,1779593444000,-1946.04,0.00028033,30]
[422900544,1779593444000,-589.0,0.00027856,4]
[422900546,1779593444000,-403.49,0.00027872,2]
[422900548,1779593444000,-404.64,0.00027872,2]
[422900552,1779593444000,-500.0,0.00027943,2]
[422900549,1779593444000,-1148.53,0.00027872,2]
[422900550,1779593444000,-156.27,0.00027898,2]
[422900551,1779593444000,-156.27,0.00027914,2]
[422900553,1779593444000,-286.26088672,0.00028,60]
[422900557,1779593444000,-403.49,0.00028033,30]
[422900559,1779593444000,-404.64,0.00028033,30]
[422900563,1779593444000,-200.0,0.0002808,2]
[422900568,1779593444000,-2148.95,0.00028082,7]
[422900558,1779593444000,-1148.32,0.00028033,30]
[422900562,1779593444000,-200.0,0.0002808,2]
[422900560,1779593444000,-1148.53,0.00028033,30]
[422900561,1779593444000,-200.0,0.0002808,2]
[422900566,1779593444000,-200.0,0.0002808,2]
[422900564,1779593444000,-200.0,0.0002808,2]
[422900565,1779593444000,-200.0,0.0002808,2]
[422900567,1779593444000,-309.77835106,0.0002808,2]
[422900436,1779593444000,-151.0,0.00027397,2]
[422900547,1779593444000,-1148.32,0.00027872,2]
[422900545,1779593444000,-1946.04,0.00027872,2]
[422900538,1779593444000,-1148.32,0.00027711,7]
[422900543,1779593444000,-308.0,0.000278,2]
[422900512,1779593444000,-151.0,0.00027397,2]
[422900517,1779593444000,-151.0,0.00027397,2]
[422900514,1779593444000,-151.0,0.00027397,2]
[422900520,1779593444000,-500.0,0.000274,2]
[422900524,1779593444000,-889.42,0.000274,7]
[422900527,1779593444000,-156.0,0.00027502,5]
[422900525,1779593444000,-10252.74,0.000274,14]
[422900529,1779593444000,-1946.04,0.0002755,30]
[422900523,1779593444000,-422.02,0.000274,7]
[422900522,1779593444000,-837.64,0.000274,2]
[422900521,1779593444000,-756.46,0.000274,2]
[422900515,1779593444000,-151.0,0.00027397,2]
[422900526,1779593444000,-1561.13,0.000275,7]
[422900534,1779593444000,-1148.53,0.0002755,30]
[422900533,1779593444000,-404.64,0.0002755,30]
[422900531,1779593444000,-403.49,0.0002755,30]
[422900532,1779593444000,-1148.32,0.0002755,30]
[422900535,1779593444000,-156.27,0.00027666,7]
[422900536,1779593444000,-1946.04,0.00027711,7]
[422900542,1779593444000,-315.0,0.000278,2]
[422900541,1779593444000,-156.27,0.00027782,30]
[422900537,1779593444000,-403.49,0.00027711,7]
[422900540,1779593444000,-1148.53,0.00027711,7]
[422900539,1779593444000,-404.64,0.00027711,7]
[422900530,1779593444000,-156.27,0.0002755,2]
[422900554,1779593444000,-2000.0,0.00028,7]
[422900447,1779593444000,-151.0,0.00027397,2]
[422900445,1779593444000,-151.0,0.00027397,2]
[422900424,1779593444000,-151.0,0.00027397,2]
[422900434,1779593444000,-151.0,0.00027397,2]
[422900427,1779593444000,-300.565521,0.00027397,2]
[422900425,1779593444000,-151.0,0.00027397,2]
[422900428,1779593444000,-151.0,0.00027397,2]
[422900423,1779593444000,-151.0,0.00027397,2]
[422900451,1779593444000,-190.376279,0.00027397,2]
[422900432,1779593444000,-151.0,0.00027397,2]
[422900426,1779593444000,-162.062033,0.00027397,2]
[422900429,1779593444000,-151.0,0.00027397,2]
[422900433,1779593444000,-151.0,0.00027397,2]
[422900430,1779593444000,-151.0,0.00027397,2]
[422900431,1779593444000,-151.0,0.00027397,2]
[422900615,1779593445000,-1946.04,0.00028838,2]
[422900612,1779593445000,-470.21870173,0.00028767,120]
[422900614,1779593445000,-500.0,0.00028837,120]
[422900607,1779593445000,-175.93629073,0.00028658,7]
[422900605,1779593445000,-172.13196034,0.00028658,7]
[422900608,1779593445000,-188.7817813,0.00028658,7]
[422900604,1779593445000,-163.43563746,0.00028658,7]
[422900602,1779593445000,-288.75092942,0.00028658,7]
[422900600,1779593445000,-287.23615621,0.00028658,7]
[422900601,1779593445000,-171.8222954,0.00028658,7]
[422900611,1779593445000,-1561.13,0.000287,7]
[422900616,1779593445000,-150.0,0.00028897,2]
[422900603,1779593445000,-171.11220484,0.00028658,7]
[422900617,1779593445000,-589.0,0.00028965,6]
[422900620,1779593445000,-889.42,0.00029,7]
[422900619,1779593445000,-422.02,0.00029,7]
[422900621,1779593445000,-150.0,0.00029,10]
[422900624,1779593445000,-1224.0,0.00029033,2]
[422900613,1779593445000,-10252.74,0.000288,14]
[422900623,1779593445000,-156.33,0.00029,30]
[422900609,1779593445000,-293.42606732,0.00028658,7]
[422900622,1779593445000,-299.99,0.00029,2]
[422900636,1779593445000,-199.66930665,0.000297,2]
[422900626,1779593445000,-1500.0,0.000293,7]
[422900637,1779593445000,-199.66930665,0.000297,2]
[422900627,1779593445000,-2148.95,0.00029305,7]
[422900638,1779593445000,-199.66930665,0.000297,2]
[422900628,1779593445000,-500.0,0.00029356,60]
[422900618,1779593445000,-1946.12,0.00029,30]
[422900610,1779593445000,-1946.04,0.00028677,7]
[422900594,1779593445000,-176.45504453,0.00028658,7]
[422900599,1779593445000,-159.69837831,0.00028658,7]
[422900569,1779593445000,-10252.74,0.000281,14]
[422900570,1779593445000,-279.0,0.00028125,2]
[422900572,1779593445000,-219.0,0.00028125,2]
[422900582,1779593445000,-646.65982734,0.00028329,2]
[422900583,1779593445000,-234.49460301,0.00028329,2]
[422900571,1779593445000,-150.0,0.00028125,2]
[422900573,1779593445000,-156.31,0.0002813,30]
[422900574,1779593445000,-1946.04,0.00028194,7]
[422900580,1779593445000,-889.42,0.000282,7]
[422900575,1779593445000,-403.49,0.00028194,7]
[422900577,1779593445000,-404.64,0.00028194,7]
[422900576,1779593445000,-1148.32,0.00028194,7]
[422900578,1779593445000,-1148.53,0.00028194,7]
[422900581,1779593445000,-676.8,0.00028267,2]
[422900579,1779593445000,-422.02,0.000282,7]
[422900584,1779593445000,-1946.04,0.00028355,2]
[422900588,1779593445000,-200.0,0.00028536,2]
[422900589,1779593445000,-168.81774802,0.00028658,7]
[422900591,1779593445000,-216.35568267,0.00028658,7]
[422900592,1779593445000,-185.34221483,0.00028658,7]
[422900595,1779593445000,-205.79955201,0.00028658,7]
[422900587,1779593445000,-1946.04,0.00028516,30]
[422900590,1779593445000,-180.48269857,0.00028658,7]
[422900586,1779593445000,-156.27,0.00028457,7]
[422900625,1779593445000,-1752.321,0.00029033,2]
[422900585,1779593445000,-589.0,0.00028411,5]
[422900593,1779593445000,-199.14296001,0.00028658,7]
[422900597,1779593445000,-182.5511309,0.00028658,7]
[422900596,1779593445000,-232.33154651,0.00028658,7]
[422900598,1779593445000,-155.93834752,0.00028658,2]
[422900630,1779593445000,-500.0,0.00029499,120]
[422900606,1779593445000,-167.33499655,0.00028658,7]
[422900631,1779593445000,-1000.0,0.00029519,6]
[422900667,1779593445000,-574.47231243,0.00029998,7]
[422900677,1779593445000,-586.85213464,0.00029998,7]
[422900676,1779593445000,-377.56356261,0.00029998,7]
[422900671,1779593445000,-189.69694475,0.00029998,7]
[422900669,1779593445000,-343.6445908,0.00029998,7]
[422900678,1779593445000,-1000.0,0.00029999,4]
[422900679,1779593445000,-1000.0,0.00029999,31]
[422900680,1779593445000,-54671.0,0.0003,30]
[422900670,1779593445000,-342.22440968,0.00029998,7]
[422900673,1779593445000,-344.26392067,0.00029998,7]
[422900674,1779593445000,-334.66999309,0.00029998,7]
[422900672,1779593445000,-326.87127491,0.00029998,7]
[422900675,1779593445000,-351.87258147,0.00029998,7]
[422900682,1779593445000,-215.34753388,0.0003,7]
[422900668,1779593445000,-577.50185885,0.00029998,7]
[422900692,1779593445000,-1000.0,0.00030136,10]
[422900681,1779593445000,-252.84,0.0003,2]
[422900694,1779593445000,-189.32,0.00030137,2]
[422900686,1779593445000,-1561.13,0.000301,7]
[422900683,1779593445000,-6486.984928,0.0003,2]
[422900684,1779593445000,-589.0,0.00030075,7]
[422900685,1779593445000,-151.72,0.00030098,2]
[422900689,1779593445000,-1000.0,0.00030129,11]
[422900687,1779593445000,-500.0,0.00030129,120]
[422900688,1779593445000,-500.0,0.00030129,120]
[422900690,1779593445000,-800.0,0.0003013,11]
[422900691,1779593445000,-415.69633392,0.0003013,11]
[422900695,1779593445000,-200.0,0.00030137,2]
[422900634,1779593445000,-500.0,0.0002964,120]
[422900696,1779593445000,-182.53286717,0.00030137,40]
[422900693,1779593445000,-1000.0,0.00030136,40]
[422900663,1779593445000,-464.66309302,0.00029998,7]
[422900697,1779593445000,-367.7,0.00030137,120]
[422900659,1779593445000,-370.68442966,0.00029998,7]
[422900660,1779593445000,-398.28592002,0.00029998,7]
[422900635,1779593445000,-208.05360648,0.000297,2]
[422900632,1779593445000,-589.0,0.0002952,6]
[422900633,1779593445000,-10252.74,0.000296,14]
[422900639,1779593445000,-506.38406531,0.00029755,2]
[422900641,1779593445000,-155.0,0.00029853,30]
[422900642,1779593445000,-190.0,0.00029853,30]
[422900644,1779593445000,-158.0,0.00029853,30]
[422900643,1779593445000,-607.0,0.00029853,30]
[422900650,1779593445000,-214.0,0.00029853,30]
[422900645,1779593445000,-155.0,0.00029853,30]
[422900640,1779593445000,-157.0,0.00029853,30]
[422900647,1779593445000,-153.0,0.00029853,30]
[422900652,1779593445000,-280.75,0.00029865,2]
[422900646,1779593445000,-319.0,0.00029853,30]
[422900629,1779593445000,-500.0,0.00029356,60]
[422900648,1779593445000,-155.0,0.00029853,30]
[422900651,1779593445000,-154.0,0.00029853,30]
[422900655,1779593445000,-168.97,0.00029979,2]
[422900653,1779593445000,-370.13108744,0.00029957,10]
[422900661,1779593445000,-352.91008905,0.00029998,7]
[422900662,1779593445000,-411.59910402,0.00029998,7]
[422900656,1779593445000,-337.63549604,0.00029998,7]
[422900657,1779593445000,-360.96539714,0.00029998,7]
[422900658,1779593445000,-432.71136535,0.00029998,7]
[422900666,1779593445000,-319.39675661,0.00029998,7]
[422900665,1779593445000,-311.87669504,0.00029998,2]
[422900664,1779593445000,-365.10226181,0.00029998,7]
[422900654,1779593445000,-1941.40147996,0.00029974,2]
[422900649,1779593445000,-355.0,0.00029853,30]
[422900736,1779593446000,-319.0,0.00030853,30]
[422900741,1779593446000,-154.0,0.00030853,30]
[422900751,1779593446000,-208.09880253,0.00030891,5]
[422900740,1779593446000,-214.0,0.00030853,30]
[422900739,1779593446000,-355.0,0.00030853,30]
[422900733,1779593446000,-607.0,0.00030853,30]
[422900732,1779593446000,-190.0,0.00030853,30]
[422900738,1779593446000,-155.0,0.00030853,30]
[422900737,1779593446000,-153.0,0.00030853,30]
[422900734,1779593446000,-158.0,0.00030853,30]
[422900728,1779593446000,-500.0,0.00030743,2]
[422900735,1779593446000,-155.0,0.00030853,30]
[422900742,1779593446000,-506.45324406,0.00030891,7]
[422900748,1779593446000,-211.88066287,0.00030891,7]
[422900744,1779593446000,-205.03444976,0.00030891,7]
[422900747,1779593446000,-211.33165354,0.00030891,7]
[422900750,1779593446000,-242.58810723,0.00030891,2]
[422900746,1779593446000,-649.06704802,0.00030891,7]
[422900745,1779593446000,-541.44809571,0.00030891,7]
[422900749,1779593446000,-153.35034795,0.00030891,7]
[422900753,1779593446000,-206.16312494,0.00030891,7]
[422900763,1779593446000,-240.0344698,0.00030891,7]
[422900762,1779593446000,-217.57000863,0.00030891,7]
[422900755,1779593446000,-597.42888003,0.00030891,7]
[422900752,1779593446000,-556.02664448,0.00030891,7]
[422900754,1779593446000,-205.46291168,0.00030891,7]
[422900730,1779593446000,-157.0,0.00030853,30]
[422900756,1779593446000,-529.36513358,0.00030891,7]
[422900743,1779593446000,-229.73872237,0.00030891,7]
[422900727,1779593446000,-234.14869205,0.00030726,15]
[422900707,1779593446000,-889.42,0.000303,7]
[422900729,1779593446000,-1000.0,0.00030847,5]
[422900757,1779593446000,-239.12418285,0.00030891,7]
[422900699,1779593446000,-500.0,0.00030178,60]
[422900698,1779593446000,-881.89,0.00030137,30]
[422900700,1779593446000,-200.0,0.00030197,2]
[422900701,1779593446000,-2352.875,0.000302,2]
[422900703,1779593446000,-2779.0,0.000302,2]
[422900705,1779593446000,-676.8,0.00030239,2]
[422900704,1779593446000,-1000.0,0.00030212,15]
[422900702,1779593446000,-628.876926,0.000302,2]
[422900712,1779593446000,-15449.02586766,0.000303,2]
[422900706,1779593446000,-422.02,0.000303,7]
[422900713,1779593446000,-150.0,0.00030341,2]
[422900710,1779593446000,-502.36050909,0.000303,2]
[422900708,1779593446000,-416.68129702,0.000303,2]
[422900709,1779593446000,-2444.36664398,0.000303,2]
[422900711,1779593446000,-4918.6136598,0.000303,2]
[422900714,1779593446000,-1000.0,0.00030399,3]
[422900721,1779593446000,-497.68995271,0.00030619,120]
[422900723,1779593446000,-589.0,0.00030629,7]
[422900716,1779593446000,-435.87746,0.0003059,9]
[422900719,1779593446000,-435.87746,0.0003059,9]
[422900722,1779593446000,-1000.0,0.00030619,49]
[422900715,1779593446000,-1115.21130847,0.00030437,2]
[422900720,1779593446000,-2148.95,0.00030605,7]
[422900718,1779593446000,-435.87746,0.0003059,9]
[422900717,1779593446000,-435.87746,0.0003059,9]
[422900724,1779593446000,-152.0,0.00030634,7]
[422900726,1779593446000,-1000.0,0.00030699,14]
[422900725,1779593446000,-152.0,0.00030634,7]
[422900731,1779593446000,-155.0,0.00030853,30]
[422900758,1779593446000,-617.39865604,0.00030891,7]
[422900803,1779593446000,-209.56741772,0.00030892,7]
[422900761,1779593446000,-231.12583428,0.00030891,7]
[422900798,1779593446000,-216.30835705,0.00030892,7]
[422900797,1779593446000,-490.30691237,0.00030892,7]
[422900795,1779593446000,-200.43586471,0.00030892,7]
[422900792,1779593446000,-215.23595834,0.00030892,7]
[422900796,1779593446000,-219.37533672,0.00030892,7]
[422900799,1779593446000,-200.95972826,0.00030892,7]
[422900815,1779593446000,-247.49700818,0.00030892,7]
[422900813,1779593446000,-502.00498964,0.00030892,7]
[422900804,1779593446000,-258.11134754,0.00030892,7]
[422900814,1779593446000,-527.8088722,0.00030892,7]
[422900802,1779593446000,-236.66658689,0.00030892,7]
[422900805,1779593446000,-243.479433,0.00030892,7]
[422900806,1779593446000,-201.81037796,0.00030892,7]
[422900794,1779593446000,-249.97723047,0.00030892,2]
[422900810,1779593446000,-239.5029263,0.00030892,7]
[422900807,1779593446000,-232.63081601,0.00030892,2]
[422900809,1779593446000,-234.50309708,0.00030892,7]
[422900812,1779593446000,-208.73280631,0.00030892,7]
[422900811,1779593446000,-516.39588101,0.00030892,7]
[422900817,1779593446000,-216.96817616,0.00030892,7]
[422900816,1779593446000,-218.1076629,0.00030892,2]
[422900818,1779593446000,-566.34534391,0.00030892,7]
[422900824,1779593446000,-1000.0,0.00030901,2]
[422900822,1779593446000,-168.94,0.000309,120]
[422900821,1779593446000,-1000.0,0.000309,2]
[422900819,1779593446000,-880.27820196,0.00030892,7]
[422900759,1779593446000,-157.17269642,0.00030891,7]
[422900820,1779593446000,-1000.0,0.00030899,7]
[422900808,1779593446000,-203.90274538,0.00030892,7]
[422900791,1779593446000,-247.14075648,0.00030892,7]
[422900823,1779593446000,-1000.0,0.00030901,2]
[422900789,1779593446000,-236.54822774,0.00030892,7]
[422900793,1779593446000,-379.3938895,0.00030892,7]
[422900760,1779593446000,-230.5537881,0.00030891,7]
[422900775,1779593446000,-214.00213272,0.00030891,7]
[422900769,1779593446000,-229.46803214,0.00030891,7]
[422900770,1779593446000,-201.31157192,0.00030891,7]
[422900768,1779593446000,-157.97369419,0.00030891,7]
[422900773,1779593446000,-547.65339271,0.00030891,7]
[422900767,1779593446000,-204.76602303,0.00030891,7]
[422900764,1779593446000,-152.63132102,0.00030891,7]
[422900776,1779593446000,-479.09513492,0.00030891,7]
[422900771,1779593446000,-248.98766956,0.00030891,5]
[422900772,1779593446000,-696.99463953,0.00030891,7]
[422900766,1779593446000,-212.67037448,0.00030891,7]
[422900774,1779593446000,-467.81504257,0.00030891,2]
[422900777,1779593446000,-861.70846864,0.00030891,7]
[422900765,1779593446000,-239.27539888,0.00030891,7]
[422900779,1779593446000,-866.25278827,0.00030891,7]
[422900781,1779593446000,-203.98856587,0.00030892,7]
[422900800,1779593446000,-246.73413882,0.00030892,2]
[422900790,1779593446000,-203.83197862,0.00030892,7]
[422900784,1779593446000,-222.94877616,0.00030892,7]
[422900786,1779593446000,-216.69488404,0.00030892,7]
[422900787,1779593446000,-293.97046387,0.00030892,7]
[422900801,1779593446000,-202.07657945,0.00030892,7]
[422900785,1779593446000,-205.63052083,0.00030892,7]
[422900788,1779593446000,-513.33661452,0.00030892,7]
[422900783,1779593446000,-220.27637076,0.00030892,7]
[422900778,1779593446000,-266.64558394,0.00030891,7]
[422900780,1779593446000,-515.46688621,0.00030891,7]
[422900782,1779593446000,-233.37285994,0.00030892,7]
[422900858,1779593447000,-150.0,0.00031,2]
[422900867,1779593447000,-227.160533,0.00031,7]
[422900866,1779593447000,-227.160531,0.00031,7]
[422900856,1779593447000,-202.47033,0.00031,7]
[422900855,1779593447000,-151.0,0.00031,7]
[422900864,1779593447000,-227.160531,0.00031,7]
[422900862,1779593447000,-254.766767,0.00031,7]
[422900863,1779593447000,-254.766775,0.00031,7]
[422900860,1779593447000,-254.766767,0.00031,7]
[422900859,1779593447000,-151.0,0.00031,7]
[422900861,1779593447000,-254.766767,0.00031,7]
[422900865,1779593447000,-227.160531,0.00031,7]
[422900869,1779593447000,-265.045286,0.00031,7]
[422900872,1779593447000,-151.0,0.00031,7]
[422900870,1779593447000,-151.0,0.00031,7]
[422900874,1779593447000,-803.804465,0.00031,7]
[422900878,1779593447000,-833.317687,0.00031,7]
[422900875,1779593447000,-803.804465,0.00031,7]
[422900873,1779593447000,-226.530182,0.00031,7]
[422900868,1779593447000,-151.0,0.00031,7]
[422900877,1779593447000,-803.804465,0.00031,7]
[422900876,1779593447000,-803.804465,0.00031,7]
[422900887,1779593447000,-594.417423,0.00031,7]
[422900886,1779593447000,-151.0,0.00031,7]
[422900889,1779593447000,-594.417423,0.00031,7]
[422900857,1779593447000,-150.0,0.00031,2]
[422900888,1779593447000,-151.0,0.00031,7]
[422900871,1779593447000,-151.0,0.00031,7]
[422900854,1779593447000,-151.0,0.00031,7]
[422900839,1779593447000,-500.0,0.00031,60]
[422900853,1779593447000,-151.0,0.00031,7]
[422900881,1779593447000,-833.317687,0.00031,7]
[422900828,1779593447000,-1000.0,0.00030901,2]
[422900827,1779593447000,-1000.0,0.00030901,2]
[422900825,1779593447000,-1000.0,0.00030901,2]
[422900826,1779593447000,-1000.0,0.00030901,2]
[422900830,1779593447000,-1000.0,0.00030901,2]
[422900837,1779593447000,-1000.0,0.00030999,120]
[422900836,1779593447000,-200.0,0.00030991,2]
[422900835,1779593447000,-1000.0,0.00030917,60]
[422900831,1779593447000,-1026.63897664,0.00030901,2]
[422900829,1779593447000,-1000.0,0.00030901,2]
[422900833,1779593447000,-435.87746,0.00030901,13]
[422900832,1779593447000,-301.86521886,0.00030901,2]
[422900834,1779593447000,-435.87746,0.00030901,13]
[422900841,1779593447000,-2500.0,0.00031,32]
[422900838,1779593447000,-1000.0,0.00030999,30]
[422900840,1779593447000,-353029.79959563,0.00031,120]
[422900842,1779593447000,-52069.32332793,0.00031,120]
[422900845,1779593447000,-500.0,0.00031,60]
[422900846,1779593447000,-200.0,0.00031,2]
[422900847,1779593447000,-154.9833366,0.00031,7]
[422900843,1779593447000,-373.26659542,0.00031,2]
[422900844,1779593447000,-574.45589957,0.00031,2]
[422900848,1779593447000,-151.0,0.00031,7]
[422900849,1779593447000,-151.0,0.00031,7]
[422900851,1779593447000,-151.0,0.00031,7]
[422900850,1779593447000,-151.0,0.00031,7]
[422900852,1779593447000,-151.0,0.00031,7]
[422900880,1779593447000,-151.0,0.00031,7]
[422900934,1779593447000,-151.0,0.00031,7]
[422900879,1779593447000,-833.317687,0.00031,7]
[422900933,1779593447000,-151.0,0.00031,7]
[422900922,1779593447000,-190.376279,0.00031,7]
[422900924,1779593447000,-190.376279,0.00031,7]
[422900925,1779593447000,-190.376279,0.00031,7]
[422900926,1779593447000,-151.0,0.00031,7]
[422900928,1779593447000,-251.64801,0.00031,7]
[422900932,1779593447000,-151.0,0.00031,7]
[422900930,1779593447000,-251.64801,0.00031,7]
[422900927,1779593447000,-151.0,0.00031,7]
[422900929,1779593447000,-251.64801,0.00031,7]
[422900931,1779593447000,-251.64801,0.00031,7]
[422900950,1779593447000,-427.37788127,0.00031436,7]
[422900936,1779593447000,-670.58624095,0.00031068,2]
[422900935,1779593447000,-151.0,0.00031,7]
[422900937,1779593447000,-292.5,0.00031068,2]
[422900938,1779593447000,-200.0,0.00031096,2]
[422900939,1779593447000,-589.0,0.00031184,8]
[422900943,1779593447000,-398.4,0.000312,7]
[422900942,1779593447000,-383.076923,0.000312,7]
[422900940,1779593447000,-398.4,0.000312,7]
[422900941,1779593447000,-398.4,0.000312,7]
[422900944,1779593447000,-209.044694,0.000312,7]
[422900946,1779593447000,-889.42,0.000312,7]
[422900945,1779593447000,-422.02,0.000312,7]
[422900947,1779593447000,-200.0,0.0003131,2]
[422900949,1779593447000,-10000.0,0.00031425,14]
[422900948,1779593447000,-501.01,0.00031414,14]
[422900923,1779593447000,-151.0,0.00031,7]
[422900914,1779593447000,-463.85304644,0.00031,2]
[422900890,1779593447000,-151.0,0.00031,7]
[422900917,1779593447000,-151.0,0.00031,7]
[422900915,1779593447000,-151.0,0.00031,7]
[422900883,1779593447000,-833.317686,0.00031,7]
[422900885,1779593447000,-151.0,0.00031,7]
[422900884,1779593447000,-151.0,0.00031,7]
[422900882,1779593447000,-151.0,0.00031,7]
[422900893,1779593447000,-151.0,0.00031,7]
[422900891,1779593447000,-594.417423,0.00031,7]
[422900895,1779593447000,-594.417416,0.00031,7]
[422900899,1779593447000,-151.0,0.00031,7]
[422900901,1779593447000,-503.628241,0.00031,7]
[422900903,1779593447000,-503.628241,0.00031,7]
[422900898,1779593447000,-151.0,0.00031,7]
[422900900,1779593447000,-503.628241,0.00031,7]
[422900897,1779593447000,-151.0,0.00031,7]
[422900907,1779593447000,-151.0,0.00031,7]
[422900904,1779593447000,-151.0,0.00031,7]
[422900916,1779593447000,-151.0,0.00031,7]
[422900912,1779593447000,-151.0,0.00031,7]
[422900919,1779593447000,-151.0,0.00031,7]
[422900911,1779593447000,-151.0,0.00031,7]
[422900909,1779593447000,-151.0,0.00031,7]
[422900920,1779593447000,-190.376279,0.00031,7]
[422900918,1779593447000,-151.0,0.00031,7]
[422900921,1779593447000,-151.0,0.00031,7]
[422900908,1779593447000,-151.0,0.00031,7]
[422900905,1779593447000,-151.0,0.00031,7]
[422900906,1779593447000,-503.628236,0.00031,7]
[422900913,1779593447000,-463.85304644,0.00031,2]
[422900988,1779593448000,-865.42273069,0.00031487,7]
[422900991,1779593448000,-306.70069591,0.00031487,7]
[422900990,1779593448000,-423.76132573,0.00031487,7]
[422900989,1779593448000,-422.66330709,0.00031487,7]
[422900987,1779593448000,-721.93079428,0.00031487,7]
[422900993,1779593448000,-416.19760507,0.00031487,5]
[422900986,1779593448000,-459.47744473,0.00031487,7]
[422900983,1779593448000,-330.53238974,0.00031444,7]
[422900985,1779593448000,-675.27099208,0.00031487,7]
[422900984,1779593448000,-270.21,0.00031444,2]
[422900995,1779593448000,-410.92582337,0.00031487,7]
[422900992,1779593448000,-485.17621447,0.00031487,2]
[422900994,1779593448000,-741.36885931,0.00031487,7]
[422901008,1779593448000,-409.53204605,0.00031487,7]
[422900997,1779593448000,-705.82017811,0.00031487,7]
[422900998,1779593448000,-478.24836569,0.00031487,7]
[422901004,1779593448000,-480.06893959,0.00031487,7]
[422901000,1779593448000,-314.34539283,0.00031487,7]
[422901003,1779593448000,-435.14001725,0.00031487,7]
[422900999,1779593448000,-823.19820805,0.00031487,7]
[422901002,1779593448000,-462.25166857,0.00031487,7]
[422901001,1779593448000,-461.10757621,0.00031487,7]
[422901006,1779593448000,-478.55079775,0.00031487,7]
[422901007,1779593448000,-425.34074896,0.00031487,7]
[422901016,1779593448000,-428.00426545,0.00031487,7]
[422901005,1779593448000,-305.26264204,0.00031487,7]